[Event "2026 European Womens Championship"]
[Site "Batumi, GE"]
[Date "2026.05.28"]
[Round "4"]
[White "Arakhamia-Grant, Ketevan"]
[Black "Dimitrijevic, Aleksandra"]
[Result "1-0"]
[Board "54"]
[TimeControl "5400+30"]
[WhiteFideId "13600168"]
[BlackFideId "929239"]
[WhiteElo "2306"]
[BlackElo "2059"]
[WhiteTitle "GM"]
[BlackTitle "WGM"]
[WhiteClock "0:19:52"]
[BlackClock "0:34:49"]
[Variant "Standard"]

1. e4 {[%clk 1:30:58]}  c5 {[%clk 1:29:21]} 2. Nf3 {[%clk 1:31:18]}  e6 {[%clk 1:29:43]} 3. d4 {[%clk 1:31:36]}  cxd4 {[%clk 1:30:06]}
4. Nxd4 {[%clk 1:32:02]}  Nc6 {[%clk 1:30:26]} 5. Nc3 {[%clk 1:32:14]}  d6 {[%clk 1:30:41]} 6. Be3 {[%clk 1:31:58]}  Nge7 {[%clk 1:27:27]}
7. Be2 {[%clk 1:29:40]}  Ng6 {[%clk 1:25:31]} 8. Qd2 {[%clk 1:18:33]}  Be7 {[%clk 1:23:42]} 9. Nb3 {[%clk 1:04:01]}  a6 {[%clk 1:21:51]}
10. a4 {[%clk 0:57:08]}  b6 {[%clk 1:20:41]} 11. f4 {[%clk 0:54:58]}  Bb7 {[%clk 1:18:51]} 12. O-O {[%clk 0:49:54]}  O-O {[%clk 1:16:46]}
13. Rad1 {[%clk 0:48:27]}  Qc7 {[%clk 1:14:43]} 14. Bg4 {[%clk 0:46:19]}  Rab8 {[%clk 1:09:19]} 15. Qf2 {[%clk 0:41:56]}  Bc8 {[%clk 1:08:36]}
16. Bh3 {[%clk 0:23:59]}  b5 {[%clk 1:04:30]} 17. axb5 {[%clk 0:23:32]}  axb5 {[%clk 1:04:54]} 18. f5 {[%clk 0:23:14]}  Nge5 {[%clk 1:04:05]}
19. Qg3 {[%clk 0:23:28]}  b4 {[%clk 1:01:07]} 20. Ne2 {[%clk 0:19:08]}  exf5 {[%clk 0:53:17]} 21. exf5 {[%clk 0:18:51]}  Ba6 {[%clk 0:52:42]}
22. f6 {[%clk 0:07:17]}  Bxf6 {[%clk 0:52:10]} 23. Rxf6 {[%clk 0:07:40]}  Bxe2 {[%clk 0:52:24]} 24. Rdxd6 {[%clk 0:07:55]}  Ng6 {[%clk 0:51:37]}
25. Rf2 {[%clk 0:07:48]}  Nce5 {[%clk 0:47:53]} 26. Rxg6 {[%clk 0:07:28]}  hxg6 {[%clk 0:41:46]} 27. Rxe2 {[%clk 0:07:50]}  Qc4 {[%clk 0:41:56]}
28. Rd2 {[%clk 0:06:05]}  Rfe8 {[%clk 0:38:52]} 29. Qf4 {[%clk 0:06:12]}  f6 {[%clk 0:31:14]} 30. Rf2 {[%clk 0:06:18]}  Qd5 {[%clk 0:27:19]}
31. Qd4 {[%clk 0:06:20]}  Qf7 {[%clk 0:26:23]} 32. Bf4 {[%clk 0:04:39]}  Rbd8 {[%clk 0:13:49]} 33. Qxb4 {[%clk 0:04:56]}  Rd1+ {[%clk 0:13:35]}
34. Rf1 {[%clk 0:05:23]}  Qd5 {[%clk 0:13:53]} 35. Nd2 {[%clk 0:05:21]}  Rxf1+ {[%clk 0:11:27]} 36. Nxf1 {[%clk 0:05:46]}  Nc4 {[%clk 0:11:33]}
37. b3 {[%clk 0:03:19]}  Na5 {[%clk 0:05:16]} 38. Qd6 {[%clk 0:02:13]}  Qe4 {[%clk 0:05:03]} 39. Bd2 {[%clk 0:02:08]}  Qa8 {[%clk 0:03:00]}
40. Qc5 {[%clk 0:00:49]}  Re5 {[%clk 0:03:04]} 41. Qc8+ {[%clk 0:00:42]}  Qxc8 {[%clk 0:03:27]} 42. Bxc8 {[%clk 0:01:08]}  Nc6 {[%clk 0:03:50]}
43. Ba6 {[%clk 0:30:21]}  Nd4 {[%clk 0:34:05]} 44. Bc4+ {[%clk 0:23:44]}  Kf8 {[%clk 0:34:22]} 45. Ne3 {[%clk 0:23:51]}  Ke7 {[%clk 0:34:32]}
46. Bc3 {[%clk 0:19:28]}  Rxe3 {[%clk 0:34:49]} 47. Bxd4 {[%clk 0:19:52]} 1-0

[Event "2026 European Womens Championship"]
[Site "Batumi, GE"]
[Date "2026.05.28"]
[Round "4"]
[White "Jarocka, Liwia"]
[Black "Hayrapetyan, Nvard"]
[Result "1-0"]
[Board "55"]
[TimeControl "5400+30"]
[WhiteFideId "21807558"]
[BlackFideId "13316460"]
[WhiteElo "2288"]
[BlackElo "2057"]
[WhiteTitle "FM"]
[BlackTitle "WFM"]
[WhiteClock "0:26:31"]
[BlackClock "0:14:35"]
[Variant "Standard"]

1. d4 {[%clk 1:30:57]}  Nf6 {[%clk 1:30:56]} 2. c4 {[%clk 1:31:09]}  e6 {[%clk 1:31:23]} 3. Nc3 {[%clk 1:31:33]}  Bb4 {[%clk 1:31:49]}
4. e3 {[%clk 1:31:51]}  O-O {[%clk 1:32:13]} 5. Bd3 {[%clk 1:31:23]}  d5 {[%clk 1:32:31]} 6. a3 {[%clk 1:32:24]}  Bxc3+ {[%clk 1:32:44]}
7. bxc3 {[%clk 1:32:48]}  dxc4 {[%clk 1:33:11]} 8. Bxc4 {[%clk 1:33:13]}  c5 {[%clk 1:33:37]} 9. Ne2 {[%clk 1:33:23]}  Qc7 {[%clk 1:33:53]}
10. Ba2 {[%clk 1:33:28]}  b6 {[%clk 1:30:28]} 11. O-O {[%clk 1:33:19]}  Ba6 {[%clk 1:28:24]} 12. Re1 {[%clk 1:32:43]}  Rd8 {[%clk 1:24:38]}
13. Ng3 {[%clk 1:31:32]}  Nc6 {[%clk 1:22:07]} 14. Rb1 {[%clk 1:29:10]}  Rac8 {[%clk 1:10:30]} 15. Rb2 {[%clk 1:26:53]}  Na5 {[%clk 1:07:21]}
16. e4 {[%clk 1:23:04]}  cxd4 {[%clk 0:53:02]} 17. cxd4 {[%clk 1:23:15]}  Nc6 {[%clk 0:49:43]} 18. d5 {[%clk 1:07:16]}  Ne7 {[%clk 0:36:26]}
19. Bg5 {[%clk 1:04:05]}  Qe5 {[%clk 0:25:00]} 20. Qd2 {[%clk 1:01:41]}  Ng6 {[%clk 0:21:35]} 21. f4 {[%clk 0:56:50]}  Qc3 {[%clk 0:21:39]}
22. Qxc3 {[%clk 0:54:38]}  Rxc3 {[%clk 0:21:56]} 23. dxe6 {[%clk 0:54:47]}  fxe6 {[%clk 0:20:34]} 24. Bxe6+ {[%clk 0:51:08]}  Kf8 {[%clk 0:19:58]}
25. e5 {[%clk 0:47:31]}  h6 {[%clk 0:18:46]} 26. exf6 {[%clk 0:44:18]}  hxg5 {[%clk 0:19:10]} 27. fxg7+ {[%clk 0:42:55]}  Kxg7 {[%clk 0:19:32]}
28. fxg5 {[%clk 0:43:07]}  Rxa3 {[%clk 0:19:08]} 29. Nh5+ {[%clk 0:41:48]}  Kh8 {[%clk 0:18:09]} 30. Bf7 {[%clk 0:35:06]}  Ne5 {[%clk 0:15:50]}
31. Ra2 {[%clk 0:30:34]}  Rxa2 {[%clk 0:13:05]} 32. Bxa2 {[%clk 0:30:57]}  Nd3 {[%clk 0:11:45]} 33. Rd1 {[%clk 0:27:54]}  Rd6 {[%clk 0:10:56]}
34. Bf7 {[%clk 0:27:01]}  Kh7 {[%clk 0:10:44]} 35. Ra1 {[%clk 0:26:30]}  Nc5 {[%clk 0:10:12]} 36. g6+ {[%clk 0:25:03]}  Rxg6 {[%clk 0:10:31]}
37. Bxg6+ {[%clk 0:25:28]}  Kxg6 {[%clk 0:10:58]} 38. Nf4+ {[%clk 0:25:52]}  Kf5 {[%clk 0:11:23]} 39. g3 {[%clk 0:24:51]}  Ke4 {[%clk 0:11:35]}
40. h4 {[%clk 0:24:45]}  Kf5 {[%clk 0:12:00]} 41. Kh2 {[%clk 0:24:43]}  Kg4 {[%clk 0:12:15]} 42. Ne6 {[%clk 0:24:01]}  Nxe6 {[%clk 0:11:50]}
43. Rxa6 {[%clk 0:24:26]}  Nd4 {[%clk 0:12:15]} 44. Rxa7 {[%clk 0:24:34]}  Nf3+ {[%clk 0:12:30]} 45. Kg2 {[%clk 0:24:59]}  Ne1+ {[%clk 0:12:55]}
46. Kf2 {[%clk 0:25:11]}  Nd3+ {[%clk 0:13:22]} 47. Ke3 {[%clk 0:25:36]}  Nc5 {[%clk 0:13:46]} 48. Rg7+ {[%clk 0:25:59]}  Kh5 {[%clk 0:14:10]}
49. Rg5+ {[%clk 0:26:17]}  Kh6 {[%clk 0:14:35]} 50. g4 {[%clk 0:26:31]} 1-0

[Event "2026 European Womens Championship"]
[Site "Batumi, GE"]
[Date "2026.05.28"]
[Round "4"]
[White "Avetisyan, Ani"]
[Black "Maisuradze, Nino"]
[Result "0-1"]
[Board "56"]
[TimeControl "5400+30"]
[WhiteFideId "13319035"]
[BlackFideId "13601717"]
[WhiteElo "2052"]
[BlackElo "2198"]
[BlackTitle "WGM"]
[WhiteClock "0:28:08"]
[BlackClock "0:27:43"]
[Variant "Standard"]

1. d4 {[%clk 1:30:58]}  Nf6 {[%clk 1:30:44]} 2. Nf3 {[%clk 1:31:23]}  c5 {[%clk 1:31:01]} 3. d5 {[%clk 1:31:46]}  d6 {[%clk 1:30:55]}
4. c4 {[%clk 1:29:08]}  e5 {[%clk 1:30:45]} 5. Nc3 {[%clk 1:24:54]}  Be7 {[%clk 1:19:00]} 6. e4 {[%clk 1:23:52]}  Nbd7 {[%clk 1:17:07]}
7. Bd3 {[%clk 1:22:46]}  Nf8 {[%clk 1:16:38]} 8. O-O {[%clk 1:21:19]}  Ng6 {[%clk 1:16:15]} 9. a4 {[%clk 1:10:52]}  a5 {[%clk 1:10:23]}
10. h3 {[%clk 1:05:51]}  h5 {[%clk 1:10:02]} 11. Ne2 {[%clk 1:01:05]}  h4 {[%clk 1:10:13]} 12. Be3 {[%clk 0:58:59]}  Nh5 {[%clk 1:10:19]}
13. Qc1 {[%clk 0:52:13]}  Bd7 {[%clk 1:07:28]} 14. b3 {[%clk 0:44:39]}  Bf6 {[%clk 1:00:11]} 15. Ra2 {[%clk 0:41:53]}  Qc8 {[%clk 1:00:34]}
16. Kh2 {[%clk 0:39:29]}  Ke7 {[%clk 0:58:21]} 17. Bd2 {[%clk 0:28:47]}  b6 {[%clk 0:57:07]} 18. Bc2 {[%clk 0:23:28]}  Qc7 {[%clk 0:56:57]}
19. Bd1 {[%clk 0:21:07]}  Rag8 {[%clk 0:57:09]} 20. Kh1 {[%clk 0:18:52]}  Qc8 {[%clk 0:57:26]} 21. Nh2 {[%clk 0:16:01]}  Ke8 {[%clk 0:39:28]}
22. Qc3 {[%clk 0:10:43]}  Be7 {[%clk 0:27:30]} 23. Ng1 {[%clk 0:08:26]}  Ngf4 {[%clk 0:25:52]} 24. Bg4 {[%clk 0:07:55]}  g6 {[%clk 0:18:23]}
25. Bxd7+ {[%clk 0:07:22]}  Qxd7 {[%clk 0:18:51]} 26. Raa1 {[%clk 0:05:18]}  f5 {[%clk 0:18:14]} 27. Rae1 {[%clk 0:04:59]}  fxe4 {[%clk 0:13:50]}
28. Rxe4 {[%clk 0:04:45]}  Nf6 {[%clk 0:13:40]} 29. Ree1 {[%clk 0:03:58]}  g5 {[%clk 0:13:54]} 30. Ngf3 {[%clk 0:02:25]}  Kd8 {[%clk 0:09:47]}
31. Nxe5 {[%clk 0:00:36]}  dxe5 {[%clk 0:10:12]} 32. Qxe5 {[%clk 0:01:03]}  Qd6 {[%clk 0:09:49]} 33. Qf5 {[%clk 0:01:32]}  Rf8 {[%clk 0:07:33]}
34. Qxg5 {[%clk 0:00:35]}  Ne4 {[%clk 0:05:22]} 35. Bxf4 {[%clk 0:00:52]}  Rxf4 {[%clk 0:01:22]} 36. Qg7 {[%clk 0:01:00]}  Rhf8 {[%clk 0:01:21]}
37. Ng4 {[%clk 0:01:20]}  Ng3+ {[%clk 0:00:54]} 38. Kg1 {[%clk 0:01:15]}  R4f7 {[%clk 0:00:35]} 39. Qc3 {[%clk 0:00:52]}  Nxf1 {[%clk 0:00:57]}
40. Ne5 {[%clk 0:01:20]}  Rxf2 {[%clk 0:00:37]} 41. Nc6+ {[%clk 0:00:46]}  Kc8 {[%clk 0:28:28]} 42. Nxe7+ {[%clk 0:31:09]}  Kb7 {[%clk 0:27:34]}
43. Re5 {[%clk 0:28:10]}  Ng3 {[%clk 0:27:40]} 44. Kh2 {[%clk 0:28:08]}  Rf1 {[%clk 0:27:43]} 0-1

[Event "2026 European Womens Championship"]
[Site "Batumi, GE"]
[Date "2026.05.28"]
[Round "4"]
[White "Khurtsilava, Inga"]
[Black "Hariharan, Shambavi"]
[Result "1/2-1/2"]
[Board "57"]
[TimeControl "5400+30"]
[WhiteFideId "13600419"]
[BlackFideId "488160"]
[WhiteElo "2175"]
[BlackElo "2008"]
[WhiteTitle "WGM"]
[BlackTitle "WFM"]
[WhiteClock "0:05:47"]
[BlackClock "0:05:10"]
[Variant "Standard"]

1. Nf3 {[%clk 1:30:58]}  Nf6 {[%clk 1:30:52]} 2. b3 {[%clk 1:31:10]}  e6 {[%clk 1:30:37]} 3. Bb2 {[%clk 1:31:32]}  b6 {[%clk 1:30:13]}
4. e3 {[%clk 1:31:50]}  Bb7 {[%clk 1:30:28]} 5. d4 {[%clk 1:32:14]}  c5 {[%clk 1:30:32]} 6. Bd3 {[%clk 1:32:34]}  cxd4 {[%clk 1:30:15]}
7. exd4 {[%clk 1:32:58]}  Be7 {[%clk 1:30:19]} 8. Nbd2 {[%clk 1:33:18]}  d6 {[%clk 1:30:36]} 9. Qe2 {[%clk 1:33:29]}  Nbd7 {[%clk 1:30:38]}
10. c4 {[%clk 1:28:53]}  Rc8 {[%clk 1:29:54]} 11. O-O {[%clk 1:28:52]}  O-O {[%clk 1:29:59]} 12. Rfe1 {[%clk 1:27:00]}  Re8 {[%clk 1:29:15]}
13. Rad1 {[%clk 1:26:00]}  Bf8 {[%clk 1:26:33]} 14. Nf1 {[%clk 1:22:59]}  g6 {[%clk 1:23:20]} 15. Ng3 {[%clk 1:23:09]}  Bg7 {[%clk 1:23:42]}
16. h4 {[%clk 1:23:03]}  d5 {[%clk 1:15:47]} 17. h5 {[%clk 1:21:04]}  Qc7 {[%clk 1:11:44]} 18. Ne5 {[%clk 1:19:46]}  dxc4 {[%clk 1:03:15]}
19. bxc4 {[%clk 1:18:51]}  Nxe5 {[%clk 1:00:05]} 20. dxe5 {[%clk 1:18:53]}  Nd7 {[%clk 1:00:06]} 21. Qe3 {[%clk 1:13:45]}  Nc5 {[%clk 0:56:53]}
22. Bf1 {[%clk 1:13:42]}  Red8 {[%clk 0:54:33]} 23. h6 {[%clk 1:13:40]}  Bf8 {[%clk 0:53:41]} 24. Bd4 {[%clk 1:09:01]}  Qe7 {[%clk 0:44:23]}
25. Qf4 {[%clk 1:08:09]}  Rc7 {[%clk 0:38:42]} 26. Be3 {[%clk 1:00:46]}  Rxd1 {[%clk 0:33:43]} 27. Rxd1 {[%clk 1:00:20]}  Rd7 {[%clk 0:34:05]}
28. Rc1 {[%clk 0:57:17]}  Qd8 {[%clk 0:28:48]} 29. Qg4 {[%clk 0:56:36]}  Qc7 {[%clk 0:26:00]} 30. Qg5 {[%clk 0:49:01]}  Qd8 {[%clk 0:21:02]}
31. Qg4 {[%clk 0:40:33]}  Qc7 {[%clk 0:18:43]} 32. Qf4 {[%clk 0:38:49]}  Qd8 {[%clk 0:12:09]} 33. Be2 {[%clk 0:35:04]}  Nd3 {[%clk 0:10:15]}
34. Bxd3 {[%clk 0:35:19]}  Rxd3 {[%clk 0:10:42]} 35. Qg4 {[%clk 0:26:37]}  Qc7 {[%clk 0:09:41]} 36. Qe2 {[%clk 0:13:56]}  Qc6 {[%clk 0:08:54]}
37. Qf1 {[%clk 0:14:14]}  Ba3 {[%clk 0:07:13]} 38. Rb1 {[%clk 0:11:47]}  Qxc4 {[%clk 0:04:12]} 39. Ne2 {[%clk 0:05:37]}  Qe4 {[%clk 0:02:06]}
40. Nf4 {[%clk 0:03:39]}  Rxe3 {[%clk 0:01:02]} 41. fxe3 {[%clk 0:03:44]}  Qxe3+ {[%clk 0:00:48]} 42. Kh2 {[%clk 0:02:11]}  Qxe5 {[%clk 0:29:15]}
43. g3 {[%clk 0:26:09]}  Bf8 {[%clk 0:25:19]} 44. Re1 {[%clk 0:22:21]}  Qa5 {[%clk 0:22:25]} 45. Qf2 {[%clk 0:17:18]}  Bxh6 {[%clk 0:19:18]}
46. Nh3 {[%clk 0:17:42]}  Bd5 {[%clk 0:17:55]} 47. Re2 {[%clk 0:16:09]}  Bc4 {[%clk 0:08:21]} 48. Rc2 {[%clk 0:15:18]}  b5 {[%clk 0:08:22]}
49. Qg2 {[%clk 0:09:05]}  Qd8 {[%clk 0:06:08]} 50. Nf2 {[%clk 0:08:36]}  Bd5 {[%clk 0:04:30]} 51. Qf1 {[%clk 0:07:07]}  Bc4 {[%clk 0:04:52]}
52. Qe1 {[%clk 0:06:22]}  Bg7 {[%clk 0:04:27]} 53. Rd2 {[%clk 0:04:08]}  Qc7 {[%clk 0:04:40]} 54. Qd1 {[%clk 0:04:27]}  Be5 {[%clk 0:03:54]}
55. Ne4 {[%clk 0:03:33]}  Bd5 {[%clk 0:03:19]} 56. Rxd5 {[%clk 0:03:58]}  exd5 {[%clk 0:03:19]} 57. Qxd5 {[%clk 0:04:26]}  h6 {[%clk 0:03:03]}
58. Kg2 {[%clk 0:03:58]}  Kh7 {[%clk 0:02:05]} 59. g4 {[%clk 0:02:23]}  Qc2+ {[%clk 0:01:54]} 60. Kf3 {[%clk 0:02:43]}  Qc7 {[%clk 0:01:46]}
61. Qxb5 {[%clk 0:02:52]}  Qe7 {[%clk 0:01:24]} 62. Qd5 {[%clk 0:03:03]}  Qa3+ {[%clk 0:01:22]} 63. Kg2 {[%clk 0:02:55]}  Qe7 {[%clk 0:01:23]}
64. Kf3 {[%clk 0:03:20]}  Qa3+ {[%clk 0:01:22]} 65. Kg2 {[%clk 0:03:41]}  Qe7 {[%clk 0:01:29]} 66. Kf3 {[%clk 0:03:26]}  f5 {[%clk 0:01:16]}
67. gxf5 {[%clk 0:02:50]}  gxf5 {[%clk 0:01:43]} 68. Nc5 {[%clk 0:02:48]}  Qg7 {[%clk 0:01:50]} 69. Ke2 {[%clk 0:01:49]}  Qg4+ {[%clk 0:01:51]}
70. Kd3 {[%clk 0:01:25]}  Qd1+ {[%clk 0:01:52]} 71. Kc4 {[%clk 0:01:42]}  Qxd5+ {[%clk 0:01:31]} 72. Kxd5 {[%clk 0:02:11]}  Bg3 {[%clk 0:01:31]}
73. Ne6 {[%clk 0:00:36]}  Kg6 {[%clk 0:01:42]} 74. a4 {[%clk 0:00:56]}  h5 {[%clk 0:01:41]} 75. Kd4 {[%clk 0:01:18]}  h4 {[%clk 0:01:05]}
76. Ke3 {[%clk 0:01:46]}  Kf6 {[%clk 0:00:57]} 77. Nd4 {[%clk 0:02:01]}  Bh2 {[%clk 0:00:51]} 78. Kf2 {[%clk 0:01:53]}  Bd6 {[%clk 0:01:11]}
79. Kg2 {[%clk 0:01:49]}  Bc5 {[%clk 0:01:11]} 80. Nf3 {[%clk 0:02:14]}  Be3 {[%clk 0:01:07]} 81. Nxh4 {[%clk 0:02:39]}  Ke5 {[%clk 0:01:10]}
82. Kf3 {[%clk 0:03:08]}  f4 {[%clk 0:01:24]} 83. Ng6+ {[%clk 0:02:51]}  Kd4 {[%clk 0:01:32]} 84. Nxf4 {[%clk 0:02:35]}  Bxf4 {[%clk 0:01:58]}
85. Kxf4 {[%clk 0:03:04]}  a5 {[%clk 0:02:22]} 86. Kf3 {[%clk 0:03:20]}  Kc4 {[%clk 0:02:48]} 87. Ke2 {[%clk 0:03:18]}  Kb3 {[%clk 0:03:08]}
88. Kd3 {[%clk 0:03:40]}  Kxa4 {[%clk 0:03:30]} 89. Kc2 {[%clk 0:03:56]}  Ka3 {[%clk 0:03:57]} 90. Kb1 {[%clk 0:04:25]}  a4 {[%clk 0:04:22]}
91. Ka1 {[%clk 0:04:52]}  Kb3 {[%clk 0:04:49]} 92. Kb1 {[%clk 0:05:20]}  a3 {[%clk 0:05:16]} 93. Ka1 {[%clk 0:05:47]}  a2 {[%clk 0:05:10]} 1/2-1/2

[Event "2026 European Womens Championship"]
[Site "Batumi, GE"]
[Date "2026.05.28"]
[Round "4"]
[White "Esadze, Tamari"]
[Black "Starosta, Martyna"]
[Result "1/2-1/2"]
[Board "58"]
[TimeControl "5400+30"]
[WhiteFideId "13611186"]
[BlackFideId "21818754"]
[WhiteElo "1974"]
[BlackElo "2175"]
[BlackTitle "WIM"]
[WhiteClock "0:05:00"]
[BlackClock "0:10:37"]
[Variant "Standard"]

1. e4 {[%clk 1:30:58]}  e6 {[%clk 1:30:44]} 2. d4 {[%clk 1:31:23]}  d5 {[%clk 1:31:10]} 3. Nd2 {[%clk 1:31:47]}  Be7 {[%clk 1:31:34]}
4. Ngf3 {[%clk 1:31:30]}  Nf6 {[%clk 1:31:45]} 5. e5 {[%clk 1:31:21]}  Nfd7 {[%clk 1:32:07]} 6. Bd3 {[%clk 1:31:48]}  c5 {[%clk 1:32:31]}
7. c3 {[%clk 1:32:11]}  Nc6 {[%clk 1:32:56]} 8. O-O {[%clk 1:31:58]}  a5 {[%clk 1:33:22]} 9. Re1 {[%clk 1:21:12]}  cxd4 {[%clk 1:32:26]}
10. cxd4 {[%clk 1:21:36]}  Qb6 {[%clk 1:32:43]} 11. Qa4 {[%clk 1:08:30]}  g5 {[%clk 1:33:02]} 12. h3 {[%clk 1:05:13]}  h5 {[%clk 1:33:01]}
13. g4 {[%clk 1:00:04]}  hxg4 {[%clk 1:27:01]} 14. hxg4 {[%clk 1:00:33]}  Nf8 {[%clk 1:26:13]} 15. Qb5 {[%clk 0:40:10]}  Qa7 {[%clk 1:20:25]}
16. Bb1 {[%clk 0:37:19]}  Bd7 {[%clk 1:15:17]} 17. Qe2 {[%clk 0:34:56]}  Nxd4 {[%clk 1:11:11]} 18. Nxd4 {[%clk 0:35:17]}  Qxd4 {[%clk 1:11:34]}
19. Nb3 {[%clk 0:35:43]}  Qb6 {[%clk 1:08:20]} 20. Be3 {[%clk 0:31:46]}  Qc7 {[%clk 1:07:42]} 21. Bd4 {[%clk 0:32:02]}  Ng6 {[%clk 1:00:51]}
22. Bxg6 {[%clk 0:31:32]}  fxg6 {[%clk 1:01:15]} 23. Rac1 {[%clk 0:31:47]}  Bc6 {[%clk 1:00:54]} 24. Qd3 {[%clk 0:27:20]}  Rh6 {[%clk 0:55:42]}
25. Kg2 {[%clk 0:19:41]}  Kf7 {[%clk 0:48:16]} 26. Qf3+ {[%clk 0:16:21]}  Kg7 {[%clk 0:47:52]} 27. Nc5 {[%clk 0:11:33]}  Qc8 {[%clk 0:48:11]}
28. Rh1 {[%clk 0:10:41]}  Rh4 {[%clk 0:45:15]} 29. Rxh4 {[%clk 0:06:00]}  gxh4 {[%clk 0:45:38]} 30. g5 {[%clk 0:06:24]}  Bxg5 {[%clk 0:41:36]}
31. Qg4 {[%clk 0:04:33]}  Bxc1 {[%clk 0:39:54]} 32. Nxe6+ {[%clk 0:05:00]}  Kh7 {[%clk 0:22:10]} 33. Qxh4+ {[%clk 0:05:13]}  Bh6 {[%clk 0:18:49]}
34. Ng5+ {[%clk 0:05:03]}  Kg8 {[%clk 0:19:12]} 35. e6 {[%clk 0:05:10]}  Qf8 {[%clk 0:17:54]} 36. Nf7 {[%clk 0:04:38]}  Bg7 {[%clk 0:16:00]}
37. Ng5 {[%clk 0:04:21]}  Bh6 {[%clk 0:13:57]} 38. Nf7 {[%clk 0:04:41]}  Bg7 {[%clk 0:10:37]} 39. Ng5 {[%clk 0:05:00]} 1/2-1/2

[Event "2026 European Womens Championship"]
[Site "Batumi, GE"]
[Date "2026.05.28"]
[Round "4"]
[White "Venskaya, Nika"]
[Black "Berke, Ana"]
[Result "1-0"]
[Board "59"]
[TimeControl "5400+30"]
[WhiteFideId "13523503"]
[BlackFideId "14510359"]
[WhiteElo "1937"]
[BlackElo "2164"]
[WhiteTitle "WCM"]
[BlackTitle "WIM"]
[WhiteClock "0:25:42"]
[BlackClock "0:01:18"]
[Variant "Standard"]

1. d4 {[%clk 1:30:59]}  d5 {[%clk 1:30:53]} 2. c4 {[%clk 1:31:25]}  e6 {[%clk 1:31:18]} 3. Nf3 {[%clk 1:31:52]}  Nf6 {[%clk 1:31:29]}
4. g3 {[%clk 1:32:10]}  Bb4+ {[%clk 1:31:33]} 5. Bd2 {[%clk 1:32:34]}  a5 {[%clk 1:31:22]} 6. Bg2 {[%clk 1:32:11]}  O-O {[%clk 1:31:15]}
7. O-O {[%clk 1:25:48]}  dxc4 {[%clk 1:31:09]} 8. Qc2 {[%clk 1:25:43]}  Bxd2 {[%clk 1:30:47]} 9. Nbxd2 {[%clk 1:25:45]}  b5 {[%clk 1:30:33]}
10. a4 {[%clk 1:21:41]}  c6 {[%clk 1:29:07]} 11. b3 {[%clk 1:21:39]}  cxb3 {[%clk 1:28:21]} 12. Nxb3 {[%clk 1:21:18]}  Ba6 {[%clk 1:24:33]}
13. Nc5 {[%clk 1:15:10]}  bxa4 {[%clk 1:11:54]} 14. Nxa6 {[%clk 1:13:38]}  Rxa6 {[%clk 1:10:12]} 15. Rxa4 {[%clk 1:12:53]}  Nbd7 {[%clk 1:07:14]}
16. Nd2 {[%clk 1:05:21]}  Nb6 {[%clk 1:03:53]} 17. Qxc6 {[%clk 1:02:42]}  Nxa4 {[%clk 1:02:19]} 18. Qxa6 {[%clk 1:03:07]}  Qxd4 {[%clk 1:00:47]}
19. Nb3 {[%clk 1:03:13]}  Qb4 {[%clk 0:55:22]} 20. Nxa5 {[%clk 1:02:26]}  Nc3 {[%clk 0:50:11]} 21. Bf3 {[%clk 0:55:23]}  h5 {[%clk 0:48:44]}
22. h4 {[%clk 0:53:39]}  e5 {[%clk 0:46:46]} 23. Nc6 {[%clk 0:50:14]}  Qc5 {[%clk 0:45:20]} 24. e3 {[%clk 0:48:32]}  e4 {[%clk 0:43:40]}
25. Bd1 {[%clk 0:45:05]}  Qd6 {[%clk 0:39:02]} 26. Bb3 {[%clk 0:43:49]}  Nd7 {[%clk 0:29:40]} 27. Qc4 {[%clk 0:41:24]}  Qd2 {[%clk 0:24:54]}
28. Kg2 {[%clk 0:38:09]}  Nf6 {[%clk 0:23:25]} 29. Qd4 {[%clk 0:31:45]}  Qb2 {[%clk 0:17:11]} 30. Bc4 {[%clk 0:31:09]}  Qa3 {[%clk 0:12:59]}
31. Ne5 {[%clk 0:29:53]}  Qa5 {[%clk 0:08:48]} 32. Rc1 {[%clk 0:27:11]}  Ncd5 {[%clk 0:02:40]} 33. Nc6 {[%clk 0:25:58]}  Qa3 {[%clk 0:02:30]}
34. Ra1 {[%clk 0:25:22]}  Qc3 {[%clk 0:02:07]} 35. Ne7+ {[%clk 0:24:27]}  Kh8 {[%clk 0:02:19]} 36. Nxd5 {[%clk 0:24:52]}  Qxd4 {[%clk 0:01:18]}
37. exd4 {[%clk 0:25:19]}  Rc8 {[%clk 0:01:18]} 38. Nxf6 {[%clk 0:25:42]} 1-0

[Event "2026 European Womens Championship"]
[Site "Batumi, GE"]
[Date "2026.05.28"]
[Round "4"]
[White "Demirtas, Hafize"]
[Black "Khachatryan, Anna"]
[Result "0-1"]
[Board "60"]
[TimeControl "5400+30"]
[WhiteFideId "6382070"]
[BlackFideId "13310780"]
[WhiteElo "1928"]
[BlackElo "2154"]
[BlackTitle "WFM"]
[WhiteClock "0:00:43"]
[BlackClock "0:03:11"]
[Variant "Standard"]

1. f4 {[%clk 1:30:55]}  Nf6 {[%clk 1:30:37]} 2. Nf3 {[%clk 1:31:12]}  c5 {[%clk 1:31:01]} 3. e3 {[%clk 1:31:32]}  g6 {[%clk 1:31:15]}
4. b3 {[%clk 1:31:17]}  Bg7 {[%clk 1:31:39]} 5. Bb2 {[%clk 1:31:20]}  O-O {[%clk 1:31:48]} 6. a4 {[%clk 1:29:45]}  d6 {[%clk 1:31:29]}
7. Na3 {[%clk 1:28:29]}  Nc6 {[%clk 1:29:08]} 8. Bb5 {[%clk 1:23:45]}  Bd7 {[%clk 1:28:44]} 9. O-O {[%clk 1:23:47]}  a6 {[%clk 1:27:18]}
10. Bc4 {[%clk 1:20:38]}  e5 {[%clk 1:14:01]} 11. fxe5 {[%clk 1:06:22]}  Ng4 {[%clk 1:14:25]} 12. Rb1 {[%clk 1:06:31]}  Ngxe5 {[%clk 1:13:28]}
13. Bd5 {[%clk 0:56:28]}  Qc7 {[%clk 0:51:23]} 14. Nxe5 {[%clk 0:52:18]}  dxe5 {[%clk 0:51:04]} 15. Qe2 {[%clk 0:47:23]}  Nb4 {[%clk 0:45:24]}
16. e4 {[%clk 0:39:32]}  Rab8 {[%clk 0:29:38]} 17. c4 {[%clk 0:36:14]}  Qd6 {[%clk 0:24:55]} 18. Bc3 {[%clk 0:24:05]}  Nxd5 {[%clk 0:22:16]}
19. cxd5 {[%clk 0:21:55]}  b5 {[%clk 0:20:47]} 20. axb5 {[%clk 0:22:12]}  axb5 {[%clk 0:21:14]} 21. Kh1 {[%clk 0:20:32]}  f5 {[%clk 0:17:44]}
22. d3 {[%clk 0:16:02]}  Ra8 {[%clk 0:15:47]} 23. Bb2 {[%clk 0:12:15]}  f4 {[%clk 0:07:41]} 24. Ra1 {[%clk 0:09:12]}  g5 {[%clk 0:07:52]}
25. g4 {[%clk 0:01:40]}  h5 {[%clk 0:06:03]} 26. gxh5 {[%clk 0:01:17]}  g4 {[%clk 0:06:20]} 27. Rg1 {[%clk 0:01:03]}  Qh6 {[%clk 0:04:44]}
28. Nxb5 {[%clk 0:01:13]}  Rxa1 {[%clk 0:04:24]} 29. Bxa1 {[%clk 0:01:26]}  Bxb5 {[%clk 0:03:05]} 30. Rxg4 {[%clk 0:01:51]}  f3 {[%clk 0:02:56]}
31. Qf2 {[%clk 0:01:00]}  Kh8 {[%clk 0:01:11]} 32. h4 {[%clk 0:00:46]}  Qc1+ {[%clk 0:01:16]} 33. Rg1 {[%clk 0:00:53]}  Qf4 {[%clk 0:01:21]}
34. h6 {[%clk 0:00:48]}  Bxh6 {[%clk 0:01:36]} 35. Rg6 {[%clk 0:01:06]}  Kh7 {[%clk 0:01:45]} 36. h5 {[%clk 0:00:43]}  Be8 {[%clk 0:02:04]}
37. Re6 {[%clk 0:00:37]}  Qc1+ {[%clk 0:02:22]} 38. Kh2 {[%clk 0:00:33]}  Bf4+ {[%clk 0:02:44]} 39. Kh3 {[%clk 0:00:43]}  Qh1+ {[%clk 0:03:11]} 0-1